bitfinex-derivatives/quotes_ETHF0:USTF0_20240925
["timestamp","ask_amount","ask_price","bid_price","bid_amount"]
[1727304392252,0.39017,2563.1,2563.0,0.7693]
[1727304392452,6.9578,2563.6,2563.0,0.7693]
[1727304393251,0.39013,2563.4,2563.1,3.2078]
[1727304393453,0.39015,2563.3,2563.1,3.2078]
[1727304393856,0.39013,2563.4,2563.1,3.2078]
[1727304394063,3.75,2563.6,2563.0,0.7693]
[1727304394357,4.1401,2563.6,2563.2,3.2078]
[1727304394554,0.97516,2563.8,2563.2,3.2078]
[1727304394752,0.39013,2563.4,2563.2,3.2078]
[1727304394954,0.3901,2563.6,2563.2,3.2078]
[1727304395246,0.39017,2563.1,2563.0,0.3854]
[1727304395448,3.75,2563.2,2563.0,0.3854]
[1727304395662,3.75,2563.2,2562.6,0.3851]
[1727304395959,0.39022,2562.8,2562.6,0.4047]
[1727304396156,3.75,2563.2,2562.6,0.4047]
[1727304396363,3.75,2563.2,2562.8,3.2078]
[1727304396563,0.3902,2562.9,2562.8,3.2078]
[1727304396762,3.75,2563.2,2562.8,3.2078]
[1727304397059,0.39019,2563.0,2562.8,3.2078]
[1727304397264,0.3902,2562.9,2562.8,3.2078]
[1727304397659,0.39018,2563.1,2562.8,3.2078]
[1727304397854,0.39019,2563.0,2562.6,0.7785]
[1727304398162,0.39019,2563.0,2562.8,3.2078]
[1727304398460,0.39018,2563.1,2562.8,3.2078]
[1727304398665,0.39019,2563.0,2562.6,0.7785]
[1727304398859,0.39019,2563.0,2562.8,3.2078]
[1727304399257,0.39018,2563.1,2562.8,3.2078]
[1727304399559,0.97527,2563.6,2562.8,3.2078]
[1727304399560,7.0488,2563.8,2563.0,3.2078]
[1727304399766,7.0488,2563.8,2563.1,0.3803]
[1727304399767,3.75,2563.5,2563.1,0.3803]
[1727304399955,0.39015,2563.3,2563.1,0.3803]
[1727304400161,0.39013,2563.4,2563.2,0.4007]
[1727304400466,3.75,2563.5,2563.2,0.4007]
[1727304400676,6.9578,2563.8,2563.3,3.2078]
[1727304400866,0.39011,2563.5,2563.3,3.6029]
[1727304401558,0.3901,2563.6,2563.3,3.6029]
[1727304402162,0.39011,2563.5,2563.3,3.6029]
[1727304402357,0.3901,2563.6,2563.3,3.6029]
[1727304402755,0.39009,2563.7,2563.3,3.99303]
[1727304403061,7.93286,2564.1,2563.3,3.6029]
[1727304403262,0.39005,2563.9,2563.6,3.2078]
[1727304403463,6.9578,2564.1,2563.7,0.3865]
[1727304403464,0.39004,2564.0,2563.7,0.3865]
[1727304403665,4.18258,2564.8,2563.9,3.2078]
[1727304403962,4.18258,2564.8,2564.2,3.2078]
[1727304403963,0.39,2564.3,2564.2,3.2078]
[1727304404152,6.9578,2564.8,2564.2,3.2078]
[1727304404354,6.9578,2564.8,2564.3,0.3707]
[1727304404560,3.75,2564.4,2563.8,3.2078]
[1727304404760,3.75,2564.4,2563.9,3.2078]
[1727304404961,0.38999,2564.3,2563.9,3.2078]
[1727304405263,0.39,2564.2,2563.9,3.2078]
[1727304405453,3.75,2564.4,2563.4,0.77401]
[1727304405454,0.39005,2563.9,2563.4,0.77401]
[1727304405654,0.39009,2563.6,2563.4,0.3839]
[1727304405957,0.3901,2563.6,2563.4,3.5917]
[1727304406158,3.75,2564.0,2563.4,3.5917]
[1727304406660,0.39005,2563.9,2563.4,3.98181]
[1727304406857,0.39005,2563.9,2563.7,3.2078]
[1727304407061,0.39004,2564.0,2563.7,3.2078]
[1727304407258,0.97497,2564.3,2563.7,3.2078]
[1727304407459,0.39006,2563.8,2563.4,3.5917]
[1727304407960,0.97504,2564.1,2563.4,3.5917]
[1727304408263,0.39011,2563.5,2563.4,3.5917]
[1727304408566,0.97512,2563.9,2563.4,3.5917]
[1727304408757,0.39011,2563.5,2563.4,0.3839]
[1727304408959,0.39015,2563.3,2563.0,3.5878]
[1727304409159,0.39015,2563.3,2563.0,3.9857]
[1727304409560,0.39011,2563.5,2563.0,3.9857]
[1727304409865,0.39011,2563.5,2563.3,3.2078]
[1727304410262,0.39012,2563.4,2563.3,3.2078]
[1727304410572,0.39012,2563.4,2563.0,3.9857]
[1727304411771,0.39017,2563.1,2563.0,0.3979]
[1727304412769,0.39021,2562.8,2562.7,3.2078]
[1727304413072,0.97531,2563.4,2562.7,3.2078]
[1727304413373,3.75,2563.5,2562.7,3.2078]
[1727304413374,0.39019,2563.0,2562.7,3.2078]
[1727304413561,0.3902,2563.0,2562.7,3.2078]
[1727304413763,0.97535,2563.3,2562.7,3.2078]
[1727304413969,0.39019,2563.0,2562.7,3.2078]
[1727304414162,0.97535,2563.3,2562.7,3.2078]
[1727304414668,0.3902,2563.0,2562.7,3.2078]
[1727304414860,0.3902,2562.9,2562.7,3.2078]
[1727304415057,0.39019,2563.0,2562.7,3.2078]
[1727304415964,0.3902,2562.9,2562.4,0.39027]
[1727304416163,0.39023,2562.7,2562.3,0.7808]
[1727304416365,0.39022,2562.8,2562.5,3.2078]
[1727304416769,0.39019,2563.0,2562.5,3.2078]
[1727304417070,0.39019,2563.0,2562.3,0.7808]
[1727304417071,3.75,2563.3,2562.8,3.2078]
[1727304417268,0.3902,2563.0,2562.8,3.2078]
[1727304417867,0.39021,2562.9,2562.4,0.39027]
[1727304418063,0.39019,2563.0,2562.5,0.39025]
[1727304418266,0.39019,2563.0,2562.5,3.2078]
[1727304418464,3.44017,2563.1,2562.8,3.2078]
[1727304418671,3.44017,2563.1,2562.9,0.3913]
[1727304418865,0.39018,2563.0,2562.9,0.3913]
[1727304419275,3.05,2563.3,2562.9,0.3913]
[1727304419276,0.39018,2563.1,2562.9,0.3913]
[1727304419774,3.05,2563.3,2562.9,0.3913]
[1727304419966,0.39017,2563.1,2562.9,0.3913]
[1727304420170,0.39018,2563.0,2562.9,0.3913]
[1727304420664,3.44018,2563.1,2562.9,0.3913]
[1727304421477,0.39016,2563.2,2562.9,0.3913]
[1727304421772,0.39016,2563.2,2563.1,3.2078]
[1727304421974,3.05,2563.5,2563.1,3.2078]
[1727304422165,0.39012,2563.4,2563.1,3.2078]
[1727304422367,3.44012,2563.5,2563.1,3.2078]
[1727304422673,4.54699543,2563.7,2563.4,3.2078]
[1727304422879,3.35488419,2564.2,2563.5,0.3772]
[1727304422880,3.05,2564.2,2563.5,0.3772]
[1727304423065,3.05,2564.2,2563.9,3.2078]
[1727304423673,3.44,2564.2,2564.1,3.2078]
[1727304424573,4.54699543,2564.6,2564.1,3.2078]
[1727304424774,0.38996,2564.5,2564.1,3.59781]
[1727304424971,0.38996,2564.5,2564.4,3.2078]
[1727304425381,3.05,2564.6,2564.4,3.2078]
[1727304425874,3.43994,2564.6,2564.4,3.2078]
[1727304426373,3.05,2564.6,2564.4,3.2078]
[1727304426564,1.49699543,2564.8,2564.4,3.2078]
[1727304426565,3.05,2564.8,2564.4,3.2078]
[1727304426770,3.05,2564.8,2564.4,3.59776]
[1727304426966,2.00846419,2565.0,2564.7,3.2078]
[1727304426967,4.54699543,2565.0,2564.7,3.2078]
[1727304427173,3.43988,2565.0,2564.7,3.2078]
[1727304427367,0.38989,2564.9,2564.8,0.3986]
[1727304431678,0.38989,2564.9,2564.7,3.2078]
[1727304431865,0.39006,2563.8,2563.7,3.2078]
[1727304432069,0.9749,2564.5,2563.4,0.4066]
[1727304432070,3.75,2564.1,2563.4,0.4066]
[1727304432270,0.39013,2563.4,2563.1,3.2078]
[1727304432471,0.39013,2563.4,2563.1,11.61413707]
[1727304432773,0.39012,2563.5,2563.1,3.59797]
[1727304433074,2.47215543,2563.9,2563.4,3.2078]
[1727304433280,0.39011,2563.5,2563.4,3.2078]
[1727304433484,5.68002543,2563.6,2562.9,0.7883]
[1727304433670,5.68002543,2563.6,2562.9,0.3817]
[1727304433978,0.39017,2563.1,2562.9,0.3817]
[1727304434180,0.39016,2563.2,2563.0,3.2078]
[1727304434373,1.49699543,2563.5,2563.0,3.2078]
[1727304434573,0.39011,2563.5,2563.3,3.2078]
[1727304434880,1.88707543,2563.7,2563.3,3.2078]
[1727304435083,0.39007,2563.8,2563.4,0.4074]
[1727304435379,0.39006,2563.8,2563.6,3.2078]
[1727304435681,0.39005,2563.9,2563.6,3.2078]
[1727304436172,0.39008,2563.7,2563.6,3.2078]
[1727304436375,0.39007,2563.8,2563.6,3.2078]
[1727304436765,1.49699543,2564.1,2563.6,3.2078]
[1727304436766,0.39005,2563.9,2563.6,3.2078]
[1727304436969,1.49699543,2564.1,2563.6,3.2078]
[1727304436970,0.39006,2563.8,2563.6,3.2078]
[1727304437170,0.39008,2563.7,2563.6,3.2078]
[1727304437376,0.39014,2563.3,2563.2,3.2078]
[1727304437571,0.39014,2563.3,2562.9,0.3817]
[1727304437572,3.2078,2563.3,2562.9,0.3817]
[1727304437775,3.2078,2563.0,2562.6,0.4024]
[1727304438076,3.59799,2563.0,2562.6,0.4024]
[1727304438381,0.39022,2562.8,2562.6,0.4024]
[1727304438583,0.3902,2562.9,2562.6,0.4024]
[1727304438882,3.59799,2563.0,2562.6,0.4024]
[1727304439081,3.2078,2563.0,2562.6,0.4024]
[1727304439283,0.39021,2562.9,2562.6,0.4024]
[1727304439472,3.2078,2563.0,2562.6,0.4024]
[1727304439473,7.1094,2563.0,2562.6,0.4024]
[1727304439674,3.2078,2562.7,2562.6,0.4024]
[1727304439873,3.59803,2562.7,2562.6,0.4024]
[1727304440072,3.59803,2562.7,2561.7,3.2078]
[1727304440073,13.1102,2562.7,2561.7,3.2078]
[1727304440277,2.98389419,2563.1,2561.4,1.22016915]
[1727304440278,1.49699543,2562.2,2561.4,1.22016915]
[1727304440571,0.39023,2562.7,2561.8,15.7878091]
[1727304440774,0.39023,2562.7,2561.9,0.78894]
[1727304440969,4.70479543,2562.9,2562.3,3.2078]
[1727304441182,4.70479543,2562.9,2562.3,0.82422671]
[1727304441183,5.11596,2562.4,2562.3,0.82422671]
[1727304441375,4.24697771,2562.4,2561.3,0.4578075]
[1727304441574,0.39041,2561.5,2561.3,0.4578075]
[1727304441773,0.97591,2561.9,2561.3,0.4578075]
[1727304441774,7.34819,2561.7,2561.3,0.4578075]
[1727304441982,0.39041,2561.5,2561.3,0.4578075]
[1727304442168,0.39041,2561.5,2561.4,0.27403915]
[1727304442378,0.39041,2561.5,2561.4,9.15e-06]
[1727304442379,7.36644,2561.5,2561.4,9.15e-06]
[1727304442581,1.36661,2561.2,2561.1,2.7945803]
[1727304442772,1.36661,2561.2,2559.4,0.15107179]
[1727304442773,7.02123545,2561.2,2559.4,3.35887179]
[1727304442972,7.02123545,2561.2,2559.3,0.51466541]
[1727304442973,0.39061,2560.2,2560.1,0.96881765]
[1727304443178,0.39062,2560.1,2560.0,1e-05]
[1727304443379,1.36719,2560.1,2560.0,1e-05]
[1727304443583,0.39072,2559.5,2559.4,2.38441]
[1727304443774,0.97675,2559.7,2559.3,0.51466541]
[1727304443775,3.2078,2559.7,2559.3,0.51466541]
[1727304444081,1.50106672,2560.1,2559.6,0.96882765]
[1727304444274,1.50106672,2560.1,2558.9,0.0376832]
[1727304444275,3.9064,2560.0,2559.1,3.2078]
[1727304444477,3.2078,2560.0,2558.9,1.54912912]
[1727304444784,0.39064,2560.1,2559.4,3.2078]
[1727304445084,3.2078,2560.1,2559.7,0.15542765]
[1727304445273,3.2078,2560.4,2560.0,0.15542765]
[1727304445473,3.2078,2560.8,2560.3,0.15542765]
[1727304445675,3.2078,2560.8,2560.7,0.15542765]
[1727304445870,3.2078,2561.2,2560.7,0.15542765]
[1727304446073,3.2078,2561.2,2560.9,0.15542765]
[1727304446275,3.2078,2561.2,2561.1,0.15542765]
[1727304446483,4.61042,2561.5,2560.9,0.15542765]
[1727304446484,0.39045,2561.3,2560.9,0.15542765]
[1727304446684,3.2078,2561.2,2560.7,1.51144592]
[1727304446981,3.2078,2561.2,2560.9,0.15542765]
[1727304447285,3.2078,2561.2,2560.8,0.15542765]
[1727304447681,3.2078,2561.2,2560.9,0.15542765]
[1727304448584,3.2078,2561.2,2560.9,1.51144592]
[1727304448886,3.2078,2561.5,2561.1,0.15542765]
[1727304449083,3.59822,2561.5,2561.2,0.15542765]
[1727304449487,3.904,2561.4,2560.6,3.2078]
[1727304449778,3.59826,2561.2,2560.7,0.15542765]
[1727304449976,3.2078,2561.2,2561.0,0.15542765]
[1727304450183,3.2078,2561.2,2561.0,1.35601827]
[1727304450387,7.1126,2561.1,2560.6,3.2078]
[1727304450689,3.59828,2561.1,2560.6,4.71924592]
[1727304451192,3.2078,2560.7,2559.6,3.2078]
[1727304451388,0.091,2561.2,2560.4,3.2078]
[1727304451580,0.39041,2561.6,2561.0,1.35601827]
[1727304451780,3.904,2561.5,2560.7,3.2078]
[1727304452090,3.2078,2561.7,2560.7,4.56381827]
[1727304452475,0.39039,2561.7,2561.0,3.2078]
[1727304452679,3.2078,2561.9,2561.0,3.59828]
[1727304452887,0.39038,2561.8,2561.0,4.56381827]
[1727304453085,3.2078,2561.9,2561.0,4.56381827]
[1727304453276,3.59816,2561.9,2561.0,4.56381827]
[1727304453477,3.2078,2561.9,2561.3,3.2078]
[1727304453679,3.2078,2561.9,2561.4,0.39042]
[1727304453881,4.22,2562.6,2561.6,3.2078]
[1727304453882,3.59808,2562.4,2561.6,3.2078]
[1727304454189,3.2078,2562.4,2561.6,3.2078]
[1727304454495,3.2078,2562.4,2561.6,4.56381827]
[1727304454686,3.2078,2562.4,2561.9,3.2078]
[1727304454884,3.2078,2562.4,2562.0,0.39032]
[1727304455084,3.2078,2562.4,2561.9,4.95415827]
[1727304455286,3.2078,2562.4,2562.0,0.39033]
[1727304455489,3.2078,2562.4,2562.1,0.39031]
[1727304456093,3.2078,2562.4,2562.1,1.74632827]
[1727304456392,3.2078,2562.4,2562.2,0.3903]
[1727304456580,3.2078,2562.4,2562.1,1.35601827]
[1727304456781,3.2078,2562.4,2561.7,0.39037]
[1727304457078,3.59808,2562.4,2561.8,3.2078]
[1727304457279,3.2078,2562.4,2561.8,4.95417827]
[1727304457490,3.2078,2562.4,2561.9,0.39035]
[1727304457880,3.2078,2562.4,2561.9,1.35601827]
[1727304458085,0.39035,2562.0,2561.5,0.7904]
[1727304458290,3.2078,2561.9,2560.9,3.2078]
[1727304458483,0.3904,2561.6,2560.9,4.95430827]
[1727304458791,0.3904,2561.6,2561.0,0.39049]
[1727304458985,0.3904,2561.6,2561.0,1.74650827]
[1727304459180,0.39039,2561.7,2561.1,3.59827]
[1727304459384,3.2078,2561.9,2561.1,3.59827]
[1727304459587,3.2078,2561.9,2561.1,4.95428827]
[1727304459789,0.39039,2561.7,2561.2,3.2078]
[1727304460289,0.39037,2561.8,2561.2,4.95427827]
[1727304460493,0.39037,2561.8,2561.3,3.2078]
[1727304460795,4.18357,2562.2,2561.3,3.59823]
[1727304460986,4.18357,2562.2,2561.3,4.95424827]
[1727304461181,0.39037,2561.8,2561.3,4.95424827]
[1727304461690,0.97581,2562.1,2561.3,4.56381827]
[1727304462081,0.97592,2561.8,2561.3,4.56381827]
[1727304462280,0.39043,2561.4,2561.3,1.35601827]
[1727304462490,0.97592,2561.8,2561.3,1.35601827]
[1727304462491,0.39041,2561.5,2561.3,1.35601827]
[1727304462683,0.3904,2561.6,2561.3,1.35601827]
[1727304462894,0.39038,2561.8,2561.4,3.2078]
[1727304463194,0.39037,2561.8,2561.4,3.2078]
[1727304463381,3.59816,2561.9,2561.4,4.95423827]
[1727304463580,0.39038,2561.8,2561.4,4.56381827]
[1727304464083,0.39037,2561.8,2561.4,4.56381827]
[1727304464484,0.39037,2561.8,2561.4,4.95423827]
[1727304464686,0.97581,2562.2,2561.4,4.56381827]
[1727304464687,3.2078,2562.2,2561.4,4.56381827]
[1727304465286,3.2078,2562.5,2561.7,3.2078]
[1727304465496,0.3903,2562.3,2561.8,0.39036]
[1727304465787,3.2078,2562.5,2562.0,3.59812]
[1727304465988,3.2078,2562.5,2562.0,4.56381827]
[1727304466390,3.2078,2562.5,2562.3,0.39028]
[1727304466591,3.2078,2562.5,2562.0,1.35601827]
[1727304466790,0.3903,2562.3,2562.0,1.35601827]
[1727304467197,0.39028,2562.4,2562.1,0.39032]
[1727304467505,3.59807,2562.5,2562.0,4.56381827]
[1727304467698,3.59807,2562.5,2562.2,0.3903]
[1727304467891,3.2078,2562.5,2562.0,4.56381827]
[1727304468098,0.39024,2562.6,2562.3,3.59808]
[1727304468405,4.1833,2563.0,2562.3,4.95409827]
[1727304468705,0.39024,2562.6,2562.3,4.95409827]
[1727304469001,0.39025,2562.6,2562.3,1.74629827]
[1727304469195,4.1833,2563.0,2562.3,4.95409827]
[1727304469391,0.39024,2562.6,2562.3,1.74629827]
[1727304469999,0.39024,2562.6,2562.3,4.95409827]
[1727304470196,0.39027,2562.4,2562.3,4.56381827]
[1727304470400,0.39027,2562.4,2562.3,1.35601827]
[1727304470703,4.1833,2563.0,2562.3,1.35601827]
[1727304470899,4.1833,2563.0,2562.3,4.95409827]
[1727304471294,0.39027,2562.4,2562.3,1.35601827]
[1727304471696,9.9024,2562.4,2561.5,3.9857]
[1727304471896,0.39036,2561.9,2561.8,3.2078]
[1727304472099,0.39038,2561.8,2561.5,2.52432827]
[1727304472593,0.3904,2561.6,2561.5,2.13391827]
[1727304473002,0.39039,2561.7,2561.5,2.13391827]
[1727304473202,0.3904,2561.6,2561.5,2.13391827]
[1727304473602,3.2078,2562.0,2561.5,2.13391827]
[1727304473802,0.39039,2561.7,2561.5,2.13391827]
[1727304474104,0.3904,2561.6,2561.5,2.13391827]
[1727304474298,0.3904,2561.6,2561.5,1.74331827]
[1727304474506,0.3904,2561.6,2561.5,0.3873]
[1727304475110,0.3904,2561.6,2561.5,1.74331827]
[1727304475503,0.3904,2561.6,2561.3,3.2078]
[1727304475504,0.39043,2561.4,2561.3,3.2078]
[1727304475714,0.39043,2561.4,2561.3,1.35601827]
[1727304475899,1.3665,2561.4,2561.3,1.35601827]
[1727304476107,1.3665,2561.4,2560.9,3.5866]
[1727304476108,0.39048,2561.1,2560.9,3.5866]
[1727304476408,4.18379,2561.7,2561.0,0.39049]
[1727304476599,4.18379,2561.7,2560.9,4.94261827]
[1727304476600,0.97599,2561.7,2561.2,3.2078]
[1727304477106,0.97599,2561.7,2561.2,1.35601827]
[1727304477107,0.39044,2561.3,2561.2,1.35601827]
[1727304478700,4.18387,2561.4,2560.9,0.3788]
[1727304479012,4.18387,2561.4,2560.9,1.73481827]
[1727304479307,0.97599,2561.7,2560.9,1.35601827]
[1727304479509,0.97599,2561.7,2561.0,0.39049]
[1727304479808,0.39047,2561.2,2561.0,1.35601827]
[1727304480011,0.976,2561.6,2561.0,1.35601827]
[1727304480217,0.39043,2561.4,2561.1,0.39047]
[1727304480506,0.97588,2561.9,2561.1,3.2078]
[1727304480708,0.97588,2561.9,2561.3,0.39044]
[1727304480709,0.39041,2561.6,2561.3,0.39044]
[1727304480909,0.39041,2561.6,2561.4,0.39042]
[1727304481207,11.18202525,2562.5,2561.5,3.904]
[1727304481208,4.1835,2562.4,2561.5,3.904]
[1727304481509,3.2078,2562.4,2561.9,0.39034]
[1727304481701,3.2078,2562.4,2561.7,3.2078]
[1727304481899,3.2078,2562.5,2561.7,1.35601827]
[1727304482107,0.39036,2561.9,2561.7,1.35601827]
[1727304482308,0.97573,2562.3,2561.7,1.35601827]
[1727304482606,0.39033,2562.1,2561.8,0.39036]
[1727304482813,0.39031,2562.2,2561.9,0.39034]
[1727304483109,0.3903,2562.3,2561.9,3.2078]
[1727304483310,0.39031,2562.2,2561.9,4.94101827]
[1727304483509,0.99870613,2562.5,2561.9,3.585]
[1727304483712,0.99870613,2562.5,2561.6,0.3717]
[1727304483713,0.39038,2561.7,2561.6,0.3717]
[1727304484011,0.39038,2561.7,2561.6,1.72771827]
[1727304484401,0.39043,2561.4,2561.3,3.585]
[1727304484603,0.39043,2561.4,2561.3,1.35601827]
[1727304485810,0.39041,2561.6,2561.3,1.74645827]
[1727304486011,0.39041,2561.6,2560.6,3.06458]
[1727304486012,3.2078,2561.4,2559.8,2.00971538]
[1727304486308,3.2078,2561.4,2559.1,3.5946]
[1727304486309,3.2078,2559.9,2559.1,3.5946]
[1727304486609,0.39066,2559.9,2559.4,0.3819]
[1727304486813,0.99927043,2560.1,2559.4,0.3819]
[1727304486814,1.38990043,2560.1,2559.4,0.3819]
[1727304487010,0.99927043,2560.1,2559.4,0.3819]
[1727304487211,3.2078,2559.9,2559.4,0.3819]
[1727304487508,0.99927043,2560.1,2559.4,0.3819]
[1727304487509,0.39065,2560.0,2559.4,0.3819]
[1727304487917,3.2078,2559.9,2559.4,0.3819]
[1727304488103,3.59846,2559.9,2559.4,0.3819]
[1727304488302,0.3907,2559.6,2559.4,0.3819]
[1727304488506,3.2078,2559.6,2559.1,0.3868]
[1727304488707,0.97671,2559.8,2558.9,0.4446832]
[1727304488708,0.39079,2559.0,2558.9,0.0376832]
[1727304489107,0.39078,2559.1,2558.9,0.0376832]
[1727304489309,4.57558,2559.0,2558.9,3.2e-06]
[1727304489514,7.50659,2559.0,2558.9,3.2e-06]
[1727304489710,14.48358,2559.0,2558.9,3.2e-06]
[1727304490012,15.48285043,2559.0,2558.9,3.2e-06]
[1727304490310,14.48358,2559.0,2558.9,3.2e-06]
[1727304490514,3.908,2558.9,2557.8,3.2078]
[1727304490738,1.712,2559.2,2557.8,3.2078]
[1727304490739,7.4278,2558.3,2557.8,3.2078]
[1727304491015,3.2078,2557.9,2556.7,2.00971538]
[1727304491311,3.2078,2557.9,2555.9,0.4011]
[1727304491312,3.2078,2557.1,2556.5,2.00971538]
[1727304491504,3.2078,2557.7,2556.7,3.2078]
[1727304491705,4.22,2557.3,2556.7,3.2078]
[1727304491916,3.2078,2557.7,2556.7,3.2078]
[1727304491917,0.39101,2557.6,2556.7,3.2078]
[1727304492106,7.8188,2557.7,2556.7,3.2078]
[1727304492414,0.091,2558.0,2555.9,34.3089]
[1727304492415,7.4278,2557.1,2555.9,34.3089]
[1727304492603,2.47076281,2558.2,2556.5,3.2078]
[1727304492604,4.311,2557.5,2556.5,3.2078]
[1727304492800,3.2078,2557.4,2556.8,3.2078]
[1727304493013,3.2078,2557.8,2557.2,0.39105]
[1727304493208,3.2078,2557.8,2557.1,3.2078]
[1727304493605,3.2078,2557.8,2557.3,0.39104]
[1727304493803,3.2078,2557.8,2556.0,2.2859]
[1727304493804,3.2078,2558.2,2557.4,3.2078]
[1727304494012,3.2078,2558.6,2557.7,3.2078]
[1727304494216,0.39094,2558.1,2557.4,3.2078]
[1727304494405,3.2078,2558.0,2557.0,0.7762]
[1727304494601,3.2078,2558.0,2557.2,3.59886]
[1727304494906,3.2078,2558.0,2557.2,0.39106]
[1727304495106,3.59875,2558.0,2557.1,0.39108]
[1727304495311,0.39096,2557.9,2557.2,3.2078]
[1727304495506,3.59875,2558.0,2557.1,0.39107]
[1727304495814,3.2078,2558.0,2557.3,0.39104]
[1727304496114,3.2078,2558.3,2557.5,3.2078]
[1727304496307,7.4278,2558.7,2557.6,3.2078]
[1727304496506,3.2078,2558.4,2557.7,0.77839]
[1727304496702,3.2078,2558.4,2557.8,0.39097]
[1727304496903,3.2078,2558.4,2557.9,33.9078]
[1727304497416,7.4278,2558.7,2558.1,0.39092]
[1727304497718,7.4278,2558.7,2558.0,0.3711]
[1727304497719,3.2078,2558.7,2558.2,0.39091]
[1727304497903,4.22,2559.0,2558.2,3.2078]
[1727304498317,4.22,2559.0,2558.3,0.3909]
[1727304498518,0.39082,2558.9,2558.2,3.5987]
[1727304498714,4.61084,2558.7,2558.1,3.2078]
[1727304498904,4.22,2558.7,2558.1,3.2078]
[1727304499215,4.22,2558.7,2558.1,3.59873]
[1727304499512,4.22,2558.7,2558.1,0.39092]
[1727304499719,3.2078,2558.6,2558.0,1.16784]
[1727304500304,0.39085,2558.7,2558.0,0.7769]
[1727304500519,0.39086,2558.6,2558.0,1.16784]
[1727304500716,0.39085,2558.7,2558.1,0.39093]
[1727304500915,0.39082,2558.8,2558.2,0.3909]
[1727304501215,0.39085,2558.7,2558.1,3.2078]
[1727304501417,3.2078,2558.9,2558.1,3.2078]
[1727304501418,0.39086,2558.6,2558.1,3.2078]
[1727304501612,0.39086,2558.6,2558.1,3.59873]
[1727304501814,4.22,2559.1,2558.1,0.39093]
[1727304501815,0.39084,2558.7,2558.1,0.39093]
[1727304502019,0.39084,2558.7,2558.0,0.7769]
[1727304502218,0.39084,2558.7,2558.2,0.39091]
[1727304502422,0.39084,2558.7,2558.1,0.39093]
[1727304502917,0.39085,2558.7,2558.2,0.39091]
[1727304503116,0.39085,2558.6,2558.1,0.39092]
[1727304503315,3.2078,2559.1,2558.1,3.2078]
[1727304503515,3.2078,2559.1,2558.4,3.2078]
[1727304503710,3.59858,2559.1,2558.6,0.39084]
[1727304503911,3.2078,2559.1,2558.4,3.2078]
[1727304504215,3.59863,2558.8,2558.3,0.39089]
[1727304504514,4.22,2559.1,2558.0,0.7769]
[1727304504515,0.39081,2558.9,2558.4,0.39088]
[1727304504713,3.2078,2558.8,2558.4,0.39088]
[1727304504917,3.59862,2558.8,2558.4,0.39088]
[1727304505123,3.2078,2558.8,2558.4,0.39088]
[1727304505319,0.39081,2558.9,2558.4,0.39088]
[1727304505320,0.39082,2558.9,2558.4,0.39088]
[1727304505618,0.39082,2558.8,2558.4,0.39088]
[1727304505817,0.39082,2558.8,2558.0,0.7769]
[1727304505818,3.2078,2558.8,2558.0,0.7769]
[1727304506018,3.2078,2558.5,2558.0,0.7769]
[1727304506216,3.59867,2558.5,2558.0,0.7769]
[1727304506612,3.2078,2558.5,2558.0,1.16784]
[1727304507112,4.22,2558.3,2558.0,0.3711]
[1727304507417,0.39096,2558.0,2557.3,0.39104]
[1727304507621,0.39096,2558.0,2557.2,3.2078]
[1727304507622,3.2078,2557.8,2557.2,33.9078]
[1727304507813,3.2078,2557.8,2557.2,3.2078]
[1727304508118,2.85811,2558.7,2557.7,0.39098]
[1727304508119,3.2078,2558.1,2557.7,0.39098]
[1727304508322,4.22,2558.3,2557.5,3.2078]
[1727304508618,3.2078,2558.4,2557.8,3.2078]
[1727304508818,0.97681,2559.5,2558.1,3.2078]
[1727304508819,3.2078,2558.7,2558.1,3.2078]
[1727304509027,0.196,2559.3,2558.9,0.39081]
[1727304509028,3.2078,2559.3,2558.9,0.39081]
[1727304509209,3.2078,2559.3,2559.0,0.39079]
[1727304509520,0.97649,2560.4,2559.1,7.115]
[1727304509521,3.59845,2560.0,2559.1,7.115]
[1727304509708,3.2078,2560.0,2559.2,0.4063]
[1727304509908,3.2078,2560.0,2559.2,0.8145]
[1727304510116,3.2078,2559.7,2559.4,0.39073]
[1727304510320,7.4278,2559.7,2559.2,0.4063]
[1727304510519,7.4278,2559.7,2558.6,0.3751]
[1727304510520,0.39076,2559.2,2558.7,0.39084]
[1727304510918,0.39078,2559.1,2558.6,1.15215]
[1727304511120,0.39078,2559.1,2558.6,0.7613]
[1727304511321,0.39077,2559.2,2558.6,1.15215]
[1727304511810,7.4278,2559.4,2558.6,0.7613]
[1727304512013,0.39079,2559.1,2558.6,0.7613]
[1727304512212,0.39079,2559.1,2558.6,0.3862]
[1727304512213,0.39081,2558.9,2558.6,0.3862]
[1727304512423,4.6108,2559.0,2558.6,0.3862]
[1727304512815,4.22,2559.0,2558.6,0.3862]
[1727304513326,3.2078,2559.4,2558.9,0.39081]
[1727304513621,3.59854,2559.4,2558.6,0.3862]
[1727304514021,0.39075,2559.3,2558.7,3.59864]
[1727304514324,3.59854,2559.4,2558.7,3.59864]
[1727304514526,3.59854,2559.4,2558.8,0.39082]
[1727304514732,3.2078,2559.4,2558.8,0.39082]
[1727304515025,3.59854,2559.4,2558.8,0.39082]
[1727304515227,3.2078,2559.4,2558.7,3.2078]
[1727304515415,3.59853,2559.4,2558.8,0.39082]
[1727304515925,3.2078,2559.4,2558.8,0.39082]
[1727304516126,3.2078,2559.4,2558.9,0.39081]
[1727304516323,3.2078,2559.4,2558.9,0.3908]
[1727304516825,3.2078,2559.7,2559.6,0.3907]
[1727304517027,4.61056,2560.6,2559.6,3.2078]